bitfinex-derivatives/quotes_BTCF0:USTF0_20250810
["timestamp","ask_amount","ask_price","bid_price","bid_amount"]
[1754814310568,1.73910892,118250.0,118240.0,1.23160253]
[1754814310775,2.09990892,118250.0,118240.0,0.45352693]
[1754814315678,2.09990892,118250.0,118240.0,0.45352743]
[1754814316278,2.09990892,118250.0,118240.0,0.2933]
[1754814317081,2.09990892,118250.0,118240.0,0.3778664]
[1754814317669,2.09990892,118250.0,118240.0,0.2933]
[1754814318068,2.09990892,118250.0,118240.0,0.3778664]
[1754814320780,1.5896293,118250.0,118240.0,0.3778664]
[1754814320980,2.09990892,118250.0,118240.0,0.3778664]
[1754814322985,1.5896293,118250.0,118240.0,0.3778664]
[1754814323186,2.09990892,118250.0,118240.0,0.3778664]
[1754814328883,2.35504873,118250.0,118240.0,0.2933]
[1754814329290,1.5896293,118250.0,118240.0,0.2933]
[1754814329487,2.09990892,118250.0,118240.0,0.2933]
[1754814330392,2.09990892,118250.0,118240.0,0.0243]
[1754814333694,2.09990892,118250.0,118240.0,0.1088663]
[1754814338193,1.5896293,118250.0,118240.0,0.1088663]
[1754814338397,1.88344911,118250.0,118240.0,0.2834563]
[1754814339191,1.88344911,118250.0,118240.0,0.30025454]
[1754814342297,1.88344911,118250.0,118240.0,0.56925454]
[1754814343100,1.6283093,118250.0,118240.0,0.56925454]
[1754814343299,1.88344911,118250.0,118240.0,0.56925454]
[1754814345491,1.48396911,118250.0,118240.0,0.56925454]
[1754814345698,1.88332911,118250.0,118240.0,0.56925454]
[1754814346297,2.13846892,118250.0,118240.0,0.56925454]
[1754814346696,2.49926892,118250.0,118240.0,0.56925454]
[1754814360203,2.75440873,118250.0,118240.0,0.31009824]
[1754814360507,0.2753963,118240.0,118230.0,0.0001]
[1754814360707,0.2754034,118230.0,118220.0,0.1692585]
[1754814360903,1.18480302,118230.0,118220.0,0.24481953]
[1754814361105,1.2006261,118230.0,118220.0,0.24481953]
[1754814361701,1.2006261,118230.0,118220.0,0.16023963]
[1754814361906,1.2006261,118230.0,118220.0,0.0845786]
[1754814362105,1.18480302,118230.0,118220.0,0.0855786]
[1754814363316,1.18480302,118230.0,118220.0,0.0845786]
[1754814363616,1.18480302,118230.0,118220.0,0.16023963]
[1754814364512,1.18480302,118230.0,118220.0,0.0845786]
[1754814365918,1.18480302,118230.0,118220.0,0.3535786]
[1754814366621,1.54560302,118230.0,118220.0,0.3535786]
[1754814374419,1.54560302,118230.0,118220.0,0.269]
[1754814377211,1.54560302,118230.0,118220.0,0.3535811]
[1754814378014,1.54560302,118230.0,118220.0,0.269]
[1754814381720,1.54560302,118230.0,118220.0,0.3535811]
[1754814383922,1.54560302,118230.0,118220.0,0.269]
[1754814388322,0.157861,118220.0,118210.0,0.0846882]
[1754814388616,1.14203062,118220.0,118210.0,0.0845882]
[1754814388821,1.14203062,118220.0,118210.0,0.1242282]
[1754814389122,1.14203062,118220.0,118210.0,0.10553]
[1754814389327,1.14203062,118220.0,118210.0,0.18119103]
[1754814389516,1.14203062,118220.0,118210.0,0.10553]
[1754814390333,1.39717043,118220.0,118210.0,0.10553]
[1754814390823,1.14203062,118220.0,118210.0,0.10553]
[1754814391025,0.2709583,118210.0,118200.0,0.88848952]
[1754814391322,0.52609811,118210.0,118200.0,0.80379462]
[1754814391620,1.17975792,118210.0,118200.0,0.80379462]
[1754814392320,0.92461811,118210.0,118200.0,0.80379462]
[1754814392523,0.92461811,118210.0,118200.0,0.80479462]
[1754814393119,0.52609811,118210.0,118200.0,1.16559462]
[1754814393629,0.52609811,118210.0,118200.0,1.42073443]
[1754814394422,0.2709583,118210.0,118200.0,1.42073443]
[1754814394632,0.2709583,118210.0,118200.0,1.42273443]
[1754814395124,0.52609811,118210.0,118200.0,1.82121443]
[1754814395525,0.33972811,118210.0,118200.0,1.82117443]
[1754814395716,0.0845883,118210.0,118200.0,1.82117443]
[1754814395922,0.33972811,118210.0,118200.0,1.82117443]
[1754814399031,0.3261939,118220.0,118210.0,0.2676583]
[1754814399225,0.58103371,118220.0,118210.0,0.52279811]
[1754814399426,0.94902352,118220.0,118210.0,0.52279811]
[1754814399732,0.94902352,118220.0,118210.0,0.2676583]
[1754814400730,0.94902352,118220.0,118210.0,0.2686583]
[1754814402235,0.94902352,118220.0,118210.0,0.34431933]
[1754814404335,0.94902352,118220.0,118210.0,0.61331933]
[1754814413334,1.56496333,118220.0,118210.0,0.34566103]
[1754814413541,1.56496333,118220.0,118210.0,0.43024923]
[1754814413842,1.56496333,118220.0,118210.0,0.34566103]
[1754814415940,1.56496333,118220.0,118210.0,0.27]
[1754814416131,1.56496333,118220.0,118210.0,0.001]
[1754814418835,1.56496333,118220.0,118210.0,0.07666103]
[1754814419031,1.56496333,118220.0,118210.0,0.001]
[1754814420345,0.2695855,118200.0,118190.0,0.34468611]
[1754814420531,0.1567426,118190.0,118180.0,0.62919893]
[1754814420737,0.77987222,118190.0,118180.0,0.6283691]
[1754814421539,0.77987222,118190.0,118180.0,0.6492291]
[1754814421733,0.77987222,118190.0,118180.0,0.7078891]
[1754814422043,0.77987222,118190.0,118180.0,0.5914508]
[1754814422640,0.77987222,118190.0,118180.0,0.6232808]
[1754814423142,0.77987222,118190.0,118180.0,0.6242808]
[1754814425235,1.14067222,118190.0,118180.0,0.6242808]
[1754814425634,1.14067222,118190.0,118180.0,0.5139308]
[1754814425839,1.14067222,118190.0,118180.0,0.5921508]
[1754814426050,0.6303926,118190.0,118180.0,0.5921508]
[1754814426242,1.14067222,118190.0,118180.0,0.6258808]
[1754814427336,1.14067222,118190.0,118180.0,0.5412797]
[1754814427844,1.14067222,118190.0,118180.0,0.3566097]
[1754814428350,1.14067222,118190.0,118180.0,0.4625197]
[1754814428549,1.14067222,118190.0,118180.0,0.4842497]
[1754814428732,1.14067222,118190.0,118180.0,0.5179797]
[1754814428937,1.14067222,118190.0,118180.0,0.16437]
[1754814429146,0.6303926,118190.0,118180.0,0.16437]
[1754814429445,1.14067222,118190.0,118180.0,0.16437]
[1754814430943,1.14067222,118190.0,118180.0,0.13064]
[1754814431445,1.14067222,118190.0,118180.0,0.09404]
[1754814431647,0.6303926,118190.0,118180.0,0.07231]
[1754814431946,1.14067222,118190.0,118180.0,0.07231]
[1754814432851,1.14067222,118190.0,118180.0,0.003]
[1754814436955,1.14067222,118190.0,118180.0,0.0876098]
[1754814437251,1.14067222,118190.0,118180.0,0.1935198]
[1754814437747,0.88553241,118190.0,118180.0,0.2731398]
[1754814438051,1.28317241,118190.0,118180.0,0.2731398]
[1754814439149,0.52473241,118190.0,118180.0,0.2731398]
[1754814441247,0.77987222,118190.0,118180.0,0.2731398]
[1754814444052,0.77987222,118190.0,118180.0,0.2394098]
[1754814444856,0.77987222,118190.0,118180.0,0.1548]
[1754814445047,1.14067222,118190.0,118180.0,0.03069]
[1754814446555,1.14067222,118190.0,118180.0,0.0876097]
[1754814446956,1.14067222,118190.0,118180.0,0.003]
[1754814447143,1.14067222,118190.0,118180.0,0.0876097]
[1754814447946,1.14067222,118190.0,118180.0,0.003]
[1754814451362,1.14067222,118190.0,118180.0,0.0876099]
[1754814451661,1.14067222,118190.0,118180.0,0.003]
[1754814451855,1.14067222,118190.0,118180.0,0.0876099]
[1754814453262,1.14067222,118190.0,118180.0,0.003]
[1754814455661,0.6303926,118190.0,118180.0,0.003]
[1754814455862,1.14067222,118190.0,118180.0,0.003]
[1754814458055,1.14067222,118190.0,118180.0,0.0876099]
[1754814460061,1.39581203,118190.0,118180.0,0.003]
[1754814460457,1.14067222,118190.0,118180.0,0.003]
[1754814461566,1.14067222,118190.0,118180.0,0.08761]
[1754814461864,1.53811222,118190.0,118180.0,0.08761]
[1754814462063,1.53811222,118190.0,118180.0,0.003]
[1754814463466,1.53811222,118190.0,118180.0,0.08761]
[1754814465170,1.0278326,118190.0,118180.0,0.08761]
[1754814465470,1.53811222,118190.0,118180.0,0.08761]
[1754814465971,1.14067222,118190.0,118180.0,0.12902]
[1754814466371,1.53803222,118190.0,118180.0,0.12902]
[1754814466777,1.53803222,118190.0,118180.0,0.23712]
[1754814467068,1.53803222,118190.0,118180.0,0.27071]
[1754814467270,1.14067222,118190.0,118180.0,0.27071]
[1754814467477,1.53803222,118190.0,118180.0,0.27071]
[1754814468873,1.14067222,118190.0,118180.0,0.27071]
[1754814469073,1.53803222,118190.0,118180.0,0.20051]
[1754814469275,1.53803222,118190.0,118180.0,0.27071]
[1754814470067,1.53803222,118190.0,118180.0,0.23712]
[1754814470469,1.53803222,118190.0,118180.0,0.08761]
[1754814471577,1.0277526,118190.0,118180.0,0.08761]
[1754814471878,1.53803222,118190.0,118180.0,0.08761]
[1754814473274,1.53799222,118190.0,118180.0,0.08761]
[1754814474272,1.14067222,118190.0,118180.0,0.08761]
[1754814474478,1.53795222,118190.0,118180.0,0.19184]
[1754814475273,1.14067222,118190.0,118180.0,0.19184]
[1754814475480,1.53795222,118190.0,118180.0,0.27071]
[1754814475667,1.14067222,118190.0,118180.0,0.1591]
[1754814475872,1.53795222,118190.0,118180.0,0.27071]
[1754814477480,1.53795222,118190.0,118180.0,0.23712]
[1754814478178,1.53795222,118190.0,118180.0,0.27071]
[1754814481584,1.0276726,118190.0,118180.0,0.27071]
[1754814481880,1.53795222,118190.0,118180.0,0.27071]
[1754814482567,1.53795222,118190.0,118180.0,0.23712]
[1754814482979,1.53795222,118190.0,118180.0,0.27071]
[1754814483282,1.53795222,118190.0,118180.0,0.23712]
[1754814484477,1.53787222,118190.0,118180.0,0.23712]
[1754814488983,0.52473231,118190.0,118180.0,1.22634996]
[1754814489178,0.44012981,118190.0,118180.0,1.22634996]
[1754814489378,0.44012981,118190.0,118180.0,1.15083981]
[1754814490180,0.32727981,118190.0,118180.0,1.15083981]
[1754814490380,0.36491981,118190.0,118180.0,1.22645658]
[1754814490573,0.43602981,118190.0,118180.0,1.22645658]
[1754814490986,0.18089,118190.0,118180.0,1.22645658]
[1754814491187,0.43602981,118190.0,118180.0,1.15083981]
[1754814491389,0.43602981,118190.0,118180.0,1.22644276]
[1754814491591,0.43602981,118190.0,118180.0,1.15083981]
[1754814492191,0.43602981,118190.0,118180.0,1.22643855]
[1754814494389,0.36491981,118190.0,118180.0,1.22643855]
[1754814494586,0.43479981,118200.0,118190.0,0.17829]
[1754814494794,0.43449981,118200.0,118190.0,0.87883241]
[1754814495187,0.68963962,118200.0,118190.0,0.87883241]
[1754814495591,0.77423502,118200.0,118190.0,0.6236926]
[1754814495795,0.68963962,118200.0,118190.0,0.87883241]
[1754814495989,0.68963962,118200.0,118190.0,0.87983241]
[1754814496185,0.32574981,118200.0,118190.0,0.95543115]
[1754814496492,0.43449981,118200.0,118190.0,1.35243115]
[1754814497888,0.43449981,118200.0,118190.0,1.27683241]
[1754814498993,0.43449981,118200.0,118190.0,1.54583241]
[1754814499194,0.43449981,118200.0,118190.0,1.2906926]
[1754814499597,0.17936,118200.0,118190.0,1.54583241]
[1754814499792,0.68963962,118200.0,118190.0,1.54583241]
[1754814500697,0.17936,118200.0,118190.0,1.54583241]
[1754814501086,0.68963962,118200.0,118190.0,1.54583241]
[1754814501891,0.43449981,118200.0,118190.0,1.54583241]
[1754814503298,0.43449981,118200.0,118190.0,1.62143115]
[1754814503997,0.43449981,118200.0,118190.0,1.36629134]
[1754814504200,0.43449981,118200.0,118190.0,1.62143115]
[1754814504387,0.68963962,118200.0,118190.0,1.62143115]
[1754814505302,0.43449981,118200.0,118190.0,1.62143115]
[1754814505701,0.43449981,118200.0,118190.0,1.36629134]
[1754814505903,0.43449981,118200.0,118190.0,1.62143115]
[1754814506203,0.68963962,118200.0,118190.0,1.36629134]
[1754814509209,1.02937433,118200.0,118190.0,0.43020134]
[1754814509507,1.02937433,118200.0,118190.0,0.3546026]
[1754814509709,0.2639549,118200.0,118190.0,0.3546026]
[1754814509910,1.02937433,118200.0,118190.0,0.3546026]
[1754814512098,0.77423452,118200.0,118190.0,0.3546026]
[1754814512520,1.02937433,118200.0,118190.0,0.3546026]
[1754814512909,0.77423452,118200.0,118190.0,0.3546026]
[1754814513712,0.77423452,118200.0,118190.0,0.3944226]
[1754814513907,0.77423452,118200.0,118190.0,0.4562826]
[1754814514108,0.77423452,118200.0,118190.0,0.5328926]
[1754814514910,0.68963962,118200.0,118190.0,0.5328926]
[1754814515311,0.77423502,118200.0,118190.0,0.5328926]
[1754814516014,0.77423502,118200.0,118190.0,0.8936926]
[1754814516410,0.77423502,118200.0,118190.0,0.5328926]
[1754814518107,0.71677981,118200.0,118190.0,1.40262291]
[1754814518406,0.80137521,118200.0,118190.0,1.40262291]
[1754814519006,0.80137521,118200.0,118190.0,1.1474831]
[1754814519208,1.05651502,118200.0,118190.0,1.40262291]
[1754814520111,1.10947502,118200.0,118190.0,1.40262291]
[1754814520316,0.85433521,118200.0,118190.0,1.40262291]
[1754814523113,0.76973981,118200.0,118190.0,1.40262291]
[1754814523308,0.5146,118200.0,118190.0,1.40262291]
[1754814523515,0.76973981,118200.0,118190.0,1.40262291]
[1754814523716,0.37309981,118200.0,118190.0,1.79918291]
[1754814524520,0.11796,118200.0,118190.0,1.79918291]
[1754814524920,0.37309981,118200.0,118190.0,1.79918291]
[1754814525714,0.37309981,118200.0,118190.0,1.87478165]
[1754814526322,0.45779411,118210.0,118200.0,0.2650653]
[1754814526521,0.11796,118210.0,118200.0,1.21174366]
[1754814526712,0.02776,118210.0,118200.0,1.21174366]
[1754814527016,0.02083,118220.0,118210.0,0.2650582]
[1754814527215,0.27586981,118220.0,118210.0,1.14999801]
[1754814527420,0.27586981,118220.0,118210.0,1.22559675]
[1754814527619,0.41196081,118220.0,118210.0,1.22559675]
[1754814527918,0.45768081,118220.0,118210.0,0.97045694]
[1754814528107,0.202541,118220.0,118210.0,0.98244089]
[1754814528310,0.45768081,118220.0,118210.0,1.2375807]
[1754814528511,0.45768081,118220.0,118210.0,1.16198196]
[1754814528706,0.54289181,118220.0,118210.0,0.90684215]
[1754814529406,0.202541,118220.0,118210.0,0.8948582]
[1754814529822,0.202541,118220.0,118210.0,0.9067635]
[1754814530022,0.204541,118220.0,118210.0,0.9067635]
[1754814530320,0.204541,118220.0,118210.0,0.8948582]
[1754814530520,0.202541,118220.0,118210.0,0.8948582]
[1754814530721,0.54389181,118220.0,118210.0,0.8948582]
[1754814531414,0.203541,118220.0,118210.0,0.8948582]
[1754814531709,0.203541,118220.0,118210.0,1.2912982]
[1754814532524,0.001,118220.0,118210.0,1.63164901]
[1754814533023,0.001,118220.0,118210.0,1.2912982]
[1754814533416,0.001,118220.0,118210.0,1.30353582]
[1754814533821,0.0855811,118220.0,118210.0,1.30353582]
[1754814538325,0.1234711,118220.0,118210.0,1.30353582]
[1754814538726,0.0855811,118220.0,118210.0,1.30353582]
[1754814540632,0.0855811,118220.0,118210.0,1.2912982]
[1754814541129,0.1234711,118220.0,118210.0,1.2912982]
[1754814542732,0.1234711,118220.0,118210.0,0.8948582]
[1754814542925,0.46382191,118220.0,118210.0,0.8948582]
[1754814544236,0.46382191,118220.0,118210.0,0.5340582]
[1754814544435,0.46382191,118220.0,118210.0,0.8948582]
[1754814546636,0.49814191,118220.0,118210.0,0.8948582]
[1754814547639,0.46382191,118220.0,118210.0,0.8948582]
[1754814548641,0.41305037,118220.0,118210.0,1.15011747]
[1754814549039,0.49419037,118220.0,118210.0,0.8948582]
[1754814549239,0.49419037,118220.0,118210.0,1.15011747]
[1754814551247,0.2389311,118220.0,118210.0,1.15011747]
[1754814551449,0.49419037,118220.0,118210.0,1.15011747]
[1754814552538,0.2389311,118220.0,118210.0,1.15011747]
[1754814552739,0.49419037,118220.0,118210.0,1.15011747]
[1754814553351,0.49419037,118220.0,118210.0,0.8948582]
[1754814553647,0.49419037,118220.0,118210.0,1.15011747]
[1754814553848,0.2389311,118220.0,118210.0,1.15011747]
[1754814554047,0.74944964,118220.0,118210.0,1.15011747]
[1754814554248,0.49419037,118220.0,118210.0,1.15011747]
[1754814557752,0.45987037,118220.0,118210.0,1.15011747]
[1754814558054,0.43019037,118220.0,118210.0,0.8948582]
[1754814558353,0.43019037,118220.0,118210.0,1.15011747]
[1754814558850,0.1749311,118220.0,118210.0,1.15011747]
[1754814559053,0.43019037,118220.0,118210.0,1.15011747]
[1754814560152,0.40181037,118220.0,118210.0,1.15011747]
[1754814562150,0.40181037,118220.0,118210.0,1.22571621]
[1754814563051,0.40181037,118220.0,118210.0,1.15011747]
[1754814564554,0.36392037,118220.0,118210.0,1.15011747]
[1754814564950,0.34084037,118220.0,118210.0,1.15011747]
[1754814566646,0.34084037,118220.0,118210.0,1.22571621]
[1754814566842,0.0855811,118220.0,118210.0,1.22571621]
[1754814567048,0.34084037,118220.0,118210.0,1.22571621]
[1754814568748,0.001,118220.0,118210.0,1.48097548]
[1754814569255,0.001,118220.0,118210.0,1.51175657]
[1754814570247,0.25555927,118230.0,118210.0,1.76551647]
[1754814570454,0.0001,118230.0,118220.0,1.36881152]
[1754814570754,0.25525927,118230.0,118220.0,1.53796892]
[1754814570955,0.3267319,118240.0,118220.0,1.62254992]
[1754814571256,0.70550117,118240.0,118230.0,0.4693938]
[1754814571455,0.70540117,118240.0,118230.0,0.4693938]
[1754814571955,0.66397117,118240.0,118230.0,0.4693938]
[1754814572156,0.70654117,118240.0,118230.0,0.4693938]
[1754814572356,0.96180044,118240.0,118230.0,0.4693938]
[1754814573855,0.4512819,118240.0,118230.0,0.4693938]
[1754814574053,0.96180044,118240.0,118230.0,0.4693938]
[1754814574353,0.76079934,118240.0,118230.0,0.4693938]
[1754814574657,0.83465934,118240.0,118230.0,0.54491505]
[1754814575657,0.83465934,118240.0,118230.0,0.4693938]
[1754814575858,0.87801934,118240.0,118230.0,0.4693938]
[1754814576058,0.87801934,118240.0,118230.0,0.7383938]
[1754814576365,0.3675008,118240.0,118230.0,0.7383938]
[1754814576661,0.28293,118240.0,118230.0,0.7383938]
[1754814576861,0.79344854,118240.0,118230.0,0.7383938]
[1754814577360,0.28293,118240.0,118230.0,0.7383938]
[1754814577561,0.79344854,118240.0,118230.0,0.7383938]
[1754814578153,0.28293,118240.0,118230.0,0.7383938]
[1754814578349,0.79344854,118240.0,118230.0,0.7383938]
[1754814578554,0.28293,118240.0,118230.0,0.7383938]
[1754814578754,1.18892854,118240.0,118230.0,0.7383938]
[1754814579157,0.67841,118240.0,118230.0,0.7383938]
[1754814579357,1.18892854,118240.0,118230.0,0.7383938]
[1754814580465,0.67841,118240.0,118230.0,0.7383938]
[1754814580665,1.18892854,118240.0,118230.0,0.7383938]
[1754814581965,1.19092854,118240.0,118230.0,0.7383938]
[1754814582166,0.68041,118240.0,118230.0,0.7383938]
[1754814582367,1.19192854,118240.0,118230.0,0.7383938]
[1754814584366,0.79644854,118240.0,118230.0,0.7383938]
[1754814584669,0.28593,118240.0,118230.0,0.7383938]
[1754814584860,0.79644854,118240.0,118230.0,0.7383938]
[1754814585667,0.28593,118240.0,118230.0,0.7383938]
[1754814585866,0.79644854,118240.0,118230.0,0.7383938]
[1754814586060,0.28593,118240.0,118230.0,0.7383938]
[1754814586255,0.79644854,118240.0,118230.0,0.7383938]
[1754814590272,0.28593,118240.0,118230.0,0.7383938]
[1754814590457,0.79644854,118240.0,118230.0,0.7383938]
[1754814590664,0.28593,118240.0,118230.0,0.5505038]
[1754814590862,0.79644854,118240.0,118230.0,0.9113038]
[1754814592565,0.28593,118240.0,118230.0,0.9113038]
[1754814592765,0.79644854,118240.0,118230.0,0.9113038]
[1754814593272,0.68117,118240.0,118230.0,0.9113038]
[1754814593467,1.19168854,118240.0,118230.0,0.9113038]
[1754814594573,1.19168854,118240.0,118230.0,0.5505038]
[1754814594771,0.68117,118240.0,118230.0,0.9113038]
[1754814594972,1.19168854,118240.0,118230.0,0.9113038]
[1754814598661,0.68117,118240.0,118230.0,0.9113038]
[1754814598868,1.19168854,118240.0,118230.0,0.9113038]
[1754814599176,0.79644854,118240.0,118230.0,0.9113038]
[1754814599379,1.19164854,118240.0,118230.0,0.9113038]
[1754814600076,0.69997722,118240.0,118230.0,0.9113038]
[1754814600270,1.21049576,118240.0,118230.0,0.9113038]
[1754814602467,0.69997722,118240.0,118230.0,0.9113038]
[1754814602872,1.21049576,118240.0,118230.0,0.9113038]
[1754814604279,0.69997722,118240.0,118230.0,0.9113038]
[1754814604479,1.21049576,118240.0,118230.0,0.9113038]
[1754814606181,0.69997722,118240.0,118230.0,0.9113038]
[1754814606476,1.21049576,118240.0,118230.0,0.9113038]
[1754814609873,0.30477722,118240.0,118230.0,0.9113038]
[1754814610078,1.21037576,118240.0,118230.0,0.9113038]
[1754814615879,0.81529576,118240.0,118230.0,0.9113038]
[1754814616182,1.21037576,118240.0,118230.0,0.9113038]
[1754814616970,1.21037576,118240.0,118230.0,0.9105638]
[1754814623286,0.81529576,118240.0,118230.0,0.9105638]
[1754814623488,1.21033576,118240.0,118230.0,0.9105638]
[1754814624980,1.21029576,118240.0,118230.0,0.9105638]
[1754814626786,0.69977722,118240.0,118230.0,0.9105638]
[1754814626986,1.21029576,118240.0,118230.0,0.9105638]
[1754814629590,0.69977722,118240.0,118230.0,0.9105638]
[1754814629895,1.21029576,118240.0,118230.0,0.9105638]
[1754814631601,0.81489576,118240.0,118230.0,0.9105638]
[1754814631893,1.20989576,118240.0,118230.0,0.9105638]
[1754814633498,0.17684722,118240.0,118230.0,1.16582307]
[1754814633698,0.79160649,118240.0,118230.0,1.16582307]
[1754814633893,0.43081649,118240.0,118230.0,1.56078307]
[1754814635597,0.17555722,118240.0,118230.0,1.56078307]
[1754814635900,0.43081649,118240.0,118230.0,1.56078307]
[1754814636898,0.43081649,118240.0,118230.0,1.3055238]
[1754814637199,0.43081649,118240.0,118230.0,1.56078307]
[1754814638498,0.43081649,118240.0,118230.0,1.3055238]
[1754814638999,0.43081649,118240.0,118230.0,1.56078307]
[1754814639398,0.51538299,118240.0,118230.0,1.56078307]
[1754814639701,0.17555722,118240.0,118230.0,1.56078307]
[1754814639898,0.43081649,118240.0,118230.0,1.56078307]
[1754814640500,0.51538299,118240.0,118230.0,1.3055238]
[1754814640700,0.51338299,118240.0,118230.0,1.56078307]
[1754814640897,0.25625927,118240.0,118230.0,1.56078307]
[1754814642497,0.25525927,118240.0,118230.0,1.56078307]
[1754814642897,0.27385199,118240.0,118230.0,1.56078307]
[1754814643499,0.25525927,118240.0,118230.0,1.56078307]
[1754814644390,1.37263927,118250.0,118240.0,0.1370267]
[1754814644595,1.39092905,118250.0,118240.0,1.12619267]
[1754814645106,1.30016927,118250.0,118240.0,1.12619267]
[1754814645802,1.04491,118250.0,118240.0,1.12619267]
[1754814646198,1.30316927,118250.0,118240.0,1.12619267]
[1754814646396,1.003,118250.0,118240.0,1.38145194]
[1754814646608,1.25825927,118250.0,118240.0,1.38145194]
[1754814647306,1.30316927,118250.0,118240.0,1.38145194]
[1754814649192,1.25825927,118250.0,118240.0,1.38145194]
[1754814649398,1.30316927,118250.0,118240.0,1.38145194]
[1754814649600,0.920841,118250.0,118240.0,1.38145194]
[1754814649793,0.820622,118250.0,118240.0,1.38145194]
[1754814650002,0.637589,118250.0,118240.0,1.38145194]
[1754814650192,0.43044,118250.0,118240.0,1.38145194]
[1754814650392,0.003,118250.0,118240.0,1.80585521]
[1754814650599,1e-07,118250.0,118240.0,1.55059594]
[1754814652301,0.0003,118260.0,118250.0,0.1585695]
[1754814652500,0.2116821,118270.0,118260.0,0.51089167]
[1754814652702,0.46664137,118270.0,118260.0,0.6164324]
[1754814652901,0.48538514,118270.0,118260.0,0.6164324]
[1754814653705,0.48538514,118270.0,118260.0,0.87169167]
[1754814653904,0.23012587,118270.0,118260.0,0.6164324]
[1754814654097,0.48538514,118270.0,118260.0,0.6164324]
[1754814654810,0.48538514,118270.0,118260.0,0.6271688]
[1754814655104,0.40987514,118270.0,118260.0,0.88242807]
[1754814655295,0.48538514,118270.0,118260.0,0.88242807]
[1754814655495,0.23012587,118270.0,118260.0,0.6271688]
[1754814655698,0.48538514,118270.0,118260.0,0.6271688]
[1754814655900,0.48738514,118270.0,118260.0,0.8961688]
[1754814656102,0.23212587,118270.0,118260.0,0.8961688]
[1754814656303,0.48738514,118270.0,118260.0,0.8961688]
[1754814656711,0.23212587,118270.0,118260.0,0.8961688]
[1754814657199,0.46864137,118270.0,118260.0,0.8961688]
[1754814657917,0.48736411,118270.0,118260.0,0.8961688]
[1754814658100,0.46864137,118270.0,118260.0,0.8961688]
[1754814659115,0.2133821,118270.0,118260.0,0.8961688]
[1754814659313,0.46864137,118270.0,118260.0,0.8961688]
[1754814661114,0.2133821,118270.0,118260.0,0.8961688]
[1754814661317,0.46864137,118270.0,118260.0,0.8961688]
[1754814662715,0.2133821,118270.0,118260.0,0.8961688]
[1754814662918,0.46864137,118270.0,118260.0,0.8961688]
[1754814665715,0.2133821,118270.0,118260.0,0.8961688]
[1754814666016,0.46864137,118270.0,118260.0,0.8961688]
[1754814667814,0.46864137,118270.0,118260.0,0.8854324]
[1754814672917,0.2133821,118270.0,118260.0,1.14069167]
[1754814673218,0.46864137,118270.0,118260.0,0.8854324]
[1754814674314,0.46864137,118270.0,118260.0,1.14069167]
[1754814680516,0.46864137,118270.0,118260.0,0.8854324]
[1754814680813,0.46864137,118270.0,118260.0,1.14069167]
[1754814681828,0.46864137,118270.0,118260.0,0.8854324]
[1754814682419,0.46864137,118270.0,118260.0,1.14069167]
[1754814682722,0.2133821,118270.0,118260.0,1.14069167]
[1754814682924,0.46864137,118270.0,118260.0,0.8854324]
[1754814683421,0.46864137,118270.0,118260.0,1.2462324]
[1754814686320,0.46864137,118270.0,118260.0,1.50149167]
[1754814686825,0.46864137,118270.0,118260.0,1.2462324]
[1754814692126,0.46864137,118270.0,118260.0,1.50149167]
[1754814692426,0.46864137,118270.0,118260.0,1.2462324]
[1754814692820,0.48743546,118270.0,118260.0,1.2462324]
[1754814693327,0.28618546,118270.0,118260.0,1.49926167]
[1754814693530,0.28618546,118270.0,118260.0,1.2440024]
[1754814693828,0.32810546,118270.0,118260.0,1.49926167]
[1754814694128,0.39055546,118270.0,118260.0,1.49926167]
[1754814695130,0.37176137,118270.0,118260.0,1.49926167]
[1754814696334,0.26739137,118270.0,118260.0,1.49926167]
[1754814696532,0.31541137,118270.0,118260.0,1.49926167]
[1754814699031,0.0601521,118270.0,118260.0,1.49926167]
[1754814699233,0.31541137,118270.0,118260.0,1.2440024]
[1754814699430,0.31541137,118270.0,118260.0,1.49926167]
[1754814700430,0.26739137,118270.0,118260.0,1.49926167]
[1754814700934,0.26739137,118270.0,118260.0,1.75452094]
[1754814704039,0.0121321,118270.0,118260.0,1.75452094]
[1754814704338,0.26739137,118270.0,118260.0,1.75452094]
[1754814705038,0.26739137,118270.0,118260.0,1.49926167]
[1754814705238,0.0121321,118270.0,118260.0,1.49926167]
[1754814705426,0.26739137,118270.0,118260.0,1.49926167]
[1754814706138,0.0121321,118270.0,118260.0,1.49926167]
[1754814706338,0.26739137,118270.0,118260.0,1.49926167]
[1754814706538,0.0121321,118270.0,118260.0,1.49926167]
[1754814706839,0.26739137,118270.0,118260.0,1.49926167]
[1754814708437,0.26739137,118270.0,118260.0,1.83004219]
[1754814709138,0.0121321,118270.0,118260.0,1.83004219]
[1754814712937,0.0121321,118270.0,118260.0,1.75452094]
[1754814713242,0.0121321,118270.0,118260.0,1.83004219]
[1754814714035,0.0121321,118270.0,118260.0,1.31952365]
[1754814714341,0.0121321,118270.0,118260.0,1.83004219]
[1754814714743,0.26739137,118270.0,118260.0,1.83004219]
[1754814715243,0.0121321,118270.0,118260.0,1.31952365]
[1754814715430,0.26739137,118270.0,118260.0,1.75452094]
[1754814715632,0.31541137,118270.0,118260.0,1.75452094]
[1754814715935,0.31541137,118270.0,118260.0,1.49926167]
[1754814716842,0.31541137,118270.0,118260.0,1.75452094]
[1754814717733,0.0121321,118270.0,118260.0,1.75452094]
[1754814717938,0.26739137,118270.0,118260.0,1.75452094]
[1754814719047,0.0121321,118270.0,118260.0,1.75452094]
[1754814719244,0.26739137,118270.0,118260.0,1.75452094]
[1754814719639,0.0121321,118270.0,118260.0,1.75452094]
[1754814722843,0.0121321,118270.0,118260.0,1.2440024]
[1754814723147,0.0601521,118270.0,118260.0,1.75452094]
[1754814723342,0.31541137,118270.0,118260.0,1.75452094]
[1754814725546,0.0601521,118270.0,118260.0,1.75452094]
[1754814727154,0.0601521,118270.0,118260.0,1.83004219]
[1754814728146,0.0601521,118270.0,118260.0,1.75452094]
[1754814728550,0.31541137,118270.0,118260.0,1.75452094]
[1754814729551,0.0601521,118270.0,118260.0,1.75452094]
[1754814730045,0.82032634,118270.0,118260.0,1.5681824]
[1754814730247,0.56506707,118270.0,118260.0,1.5854224]
[1754814730454,0.56506707,118270.0,118260.0,1.88739167]
[1754814731049,0.56506707,118270.0,118260.0,1.6321324]
[1754814731257,0.56506707,118270.0,118260.0,1.88739167]
[1754814733153,0.56506707,118270.0,118260.0,1.6321324]
[1754814742675,0.3098078,118270.0,118260.0,1.6321324]
[1754814742878,0.56506707,118270.0,118260.0,1.61839167]
[1754814743978,0.48052137,118270.0,118260.0,1.61839167]
[1754814748682,0.48052137,118270.0,118260.0,1.3631324]
[1754814748985,0.48052137,118270.0,118260.0,1.61839167]
[1754814749786,0.48052137,118270.0,118260.0,1.3631324]
[1754814750083,0.48052137,118270.0,118260.0,1.61839167]
[1754814750486,0.48052137,118270.0,118260.0,1.3631324]
[1754814750784,0.48052137,118270.0,118260.0,1.88739167]
[1754814750990,0.48052137,118270.0,118260.0,1.6321324]